bitfinex-derivatives/quotes_BNBF0:USTF0_20250510
["timestamp","ask_amount","ask_price","bid_price","bid_amount"]
[1746855184291,1.93745811,659.94,658.92,0.30352698]
[1746855184791,0.24964593,659.93,658.92,0.30352698]
[1746855186189,0.24964593,660.0,658.92,0.30352698]
[1746855188589,0.24964593,659.99,658.92,0.30352698]
[1746855188886,0.24964593,660.31,658.93,0.432]
[1746855189084,0.24964593,660.31,658.94,0.30351777]
[1746855189287,0.26389026,659.98,658.94,0.30351777]
[1746855189487,0.24964593,659.97,658.94,0.30351777]
[1746855190091,0.24964593,660.31,658.94,0.30351777]
[1746855190292,1.93745811,660.21,658.94,0.30351777]
[1746855190788,0.51352518,660.2,658.94,0.30351777]
[1746855191187,0.24964593,660.19,658.94,0.30351777]
[1746855191491,0.24964593,660.18,658.94,0.30351777]
[1746855191993,0.24964593,660.17,658.94,0.30351777]
[1746855192495,0.24964593,660.16,658.94,0.30351777]
[1746855192790,0.24964593,660.19,658.94,0.30351777]
[1746855193094,0.24964593,660.18,658.94,0.30351777]
[1746855193690,0.24964593,660.17,658.94,0.30351777]
[1746855194096,0.24964593,660.16,658.94,0.30351777]
[1746855194295,1.93745811,660.22,658.94,0.30351777]
[1746855194597,0.24963157,660.21,658.94,0.30351777]
[1746855194998,0.24963157,660.2,658.94,0.30351777]
[1746855195192,0.51350782,660.2,658.94,0.30351777]
[1746855195394,0.24963157,660.19,658.94,0.30351777]
[1746855195699,0.24963157,660.18,658.94,0.30351777]
[1746855195898,0.24963157,660.18,658.95,0.325]
[1746855196098,0.24963157,660.17,658.96,0.30350855]
[1746855196394,0.24963157,660.16,658.96,0.30350855]
[1746855196998,0.24963157,660.15,658.96,0.30350855]
[1746855197197,0.24963157,660.14,658.96,0.30350855]
[1746855197597,0.24963157,660.13,658.96,0.30350855]
[1746855197895,0.24963157,660.3,658.96,0.30350855]
[1746855198197,0.26386325,660.12,658.96,0.30350855]
[1746855198399,0.24963157,660.29,658.96,0.30350855]
[1746855198600,0.24963157,660.11,658.96,0.30350855]
[1746855198797,0.24963157,660.1,658.96,0.30350855]
[1746855199098,0.24963157,660.09,658.96,0.30350855]
[1746855199296,0.51349582,660.09,658.96,0.30350855]
[1746855199496,0.24963157,660.08,658.96,0.30350855]
[1746855200098,0.24963157,660.07,658.96,0.30350855]
[1746855200299,0.24963157,660.06,658.96,0.30350855]
[1746855200699,0.24963157,660.05,658.96,0.30350855]
[1746855201001,0.24963157,660.04,658.96,0.30350855]
[1746855201201,0.51349882,660.04,658.96,0.30350855]
[1746855201495,0.24963157,660.03,658.96,0.30350855]
[1746855201902,0.24963157,660.02,658.96,0.30350855]
[1746855202401,0.24963157,660.03,658.96,0.30350855]
[1746855203500,0.24963157,660.22,658.96,0.30350855]
[1746855204102,0.26386525,660.21,658.96,0.30350855]
[1746855204401,0.24963157,660.2,658.96,0.30350855]
[1746855206097,0.24963157,660.39,658.96,0.30350855]
[1746855207004,0.26386625,660.38,658.96,0.30350855]
[1746855207502,0.24963157,660.37,658.96,0.30350855]
[1746855209098,0.24963157,660.36,658.96,0.30350855]
[1746855209302,0.24963157,660.35,658.96,0.30350855]
[1746855209704,0.24963157,660.34,658.96,0.30350855]
[1746855210007,0.51351883,660.34,658.96,0.30350855]
[1746855210204,0.24963157,660.33,658.96,0.30350855]
[1746855210405,0.24963157,660.32,658.96,0.30350855]
[1746855210701,0.24963157,660.31,658.96,0.30350855]
[1746855211007,0.24963157,660.3,658.96,0.30350855]
[1746855211401,1.93745811,660.21,658.96,0.30350855]
[1746855211907,0.24963157,660.2,658.96,0.30350855]
[1746855212402,0.24963157,660.19,658.96,0.30350855]
[1746855212706,0.24963157,660.18,658.96,0.30350855]
[1746855213102,0.51353484,660.17,658.96,0.30350855]
[1746855213501,0.24963157,660.16,658.96,0.30350855]
[1746855213905,1.93745811,660.13,658.96,0.30350855]
[1746855214209,0.24963157,660.12,658.96,0.30350855]
[1746855214807,0.24963157,660.11,658.96,0.30350855]
[1746855215207,0.24963157,660.1,658.96,0.30350855]
[1746855215508,0.24963157,660.09,658.96,0.30350855]
[1746855215704,1.93745811,660.13,658.96,0.30350855]
[1746855216008,0.26391127,660.08,658.96,0.30350855]
[1746855216607,0.24971399,660.07,658.96,0.30350855]
[1746855217204,0.24971399,660.06,658.96,0.30350855]
[1746855217809,0.24971399,660.05,658.96,0.30350855]
[1746855218311,0.24971399,660.04,658.96,0.30350855]
[1746855218607,0.26391127,660.03,658.96,0.30350855]
[1746855218910,0.24971424,660.02,658.96,0.30350855]
[1746855219210,0.24971424,660.01,658.96,0.30350855]
[1746855219510,0.24971424,660.0,658.96,0.30350855]
[1746855220011,0.24971424,659.99,658.96,0.30350855]
[1746855220310,0.24971424,659.98,658.96,0.30350855]
[1746855221113,0.26391227,659.97,658.96,0.30350855]
[1746855221615,0.51362651,659.97,658.96,0.30350855]
[1746855222115,0.24971424,659.96,658.96,0.30350855]
[1746855222409,0.24971424,659.95,658.96,0.30350855]
[1746855222713,0.24971424,659.94,658.96,0.30350855]
[1746855223309,0.24971424,659.93,658.96,0.30350855]
[1746855223610,0.24971424,659.92,658.96,0.30350855]
[1746855224014,0.24971424,659.91,658.96,0.30350855]
[1746855224314,0.24971424,659.9,658.96,0.30350855]
[1746855224614,0.24971424,659.89,658.96,0.30350855]
[1746855225111,0.24971424,659.88,658.96,0.30350855]
[1746855225414,0.24971424,659.87,658.96,0.30350855]
[1746855225714,0.24971424,659.86,658.96,0.30350855]
[1746855226109,0.24971424,659.85,658.96,0.30350855]
[1746855226713,0.24971424,659.84,658.96,0.30350855]
[1746855227214,0.51365053,659.83,658.96,0.30350855]
[1746855227815,0.24971424,659.82,658.96,0.30350855]
[1746855228416,0.24971424,659.81,658.96,0.30350855]
[1746855228816,0.24971424,659.8,658.96,0.30350855]
[1746855229110,0.26393629,659.83,658.96,0.30350855]
[1746855229415,0.2497863,659.82,658.96,0.30350855]
[1746855229715,0.2497863,659.81,658.96,0.30350855]
[1746855230114,0.2497863,659.8,658.96,0.30350855]
[1746855230315,0.2497863,659.79,658.96,0.30350855]
[1746855230917,0.2497863,659.96,658.96,0.30350855]
[1746855231111,0.2497863,659.78,658.96,0.30350855]
[1746855231312,0.26393329,659.95,658.96,0.30350855]
[1746855231815,0.2497863,659.94,658.96,0.30350855]
[1746855233217,0.2497863,659.94,658.97,0.476]
[1746855235719,0.26393329,659.95,658.97,0.476]
[1746855235920,1.93745811,660.3,658.97,0.476]
[1746855236224,0.24973714,659.94,658.97,0.476]
[1746855236515,0.24973714,660.29,658.97,0.476]
[1746855236814,0.24973714,660.28,658.97,0.476]
[1746855237214,0.5136364,660.27,658.97,0.476]
[1746855237619,0.24973714,660.26,658.97,0.476]
[1746855237919,0.24973714,660.25,658.97,0.476]
[1746855238221,0.26389926,660.27,658.97,0.476]
[1746855238616,0.24973985,660.26,658.97,0.476]
[1746855239119,0.51365913,660.25,658.97,0.476]
[1746855239521,0.24973985,660.24,658.97,0.476]
[1746855239822,0.30292473,660.23,658.97,0.476]
[1746855240321,0.24973985,660.22,658.98,0.502]
[1746855240621,0.55267376,660.21,658.98,0.502]
[1746855240825,0.3029385,660.2,658.98,0.502]
[1746855241321,0.24969763,660.19,658.98,0.502]
[1746855241621,0.24969763,660.18,658.98,0.502]
[1746855241821,0.30295226,660.17,658.98,0.502]
[1746855242022,0.55264989,660.17,658.98,0.502]
[1746855242322,0.56689856,660.17,658.98,0.502]
[1746855242520,0.24971075,660.16,658.98,0.502]
[1746855245325,0.24971075,660.15,658.98,0.502]
[1746855245625,0.24971075,660.14,658.98,0.502]
[1746855246227,0.24971075,660.13,658.98,0.502]
[1746855246527,0.24971075,660.12,658.98,0.502]
[1746855246929,0.24971075,660.11,658.98,0.502]
[1746855247229,0.24971075,660.1,658.98,0.502]
[1746855247624,0.24971075,660.09,658.98,0.502]
[1746855248030,0.24971075,660.08,658.98,0.502]
[1746855248233,2.18716886,660.07,658.98,0.502]
[1746855248527,0.24971075,660.06,658.98,0.502]
[1746855248827,0.24971075,660.05,658.98,0.502]
[1746855249127,0.24971075,660.04,658.98,0.502]
[1746855249430,0.24971075,660.03,658.98,0.502]
[1746855249833,0.24971075,660.02,658.98,0.502]
[1746855250128,0.24971075,660.01,658.98,0.502]
[1746855250533,0.24971075,660.0,658.98,0.502]
[1746855250828,0.24971075,659.99,658.98,0.502]
[1746855251233,0.24971075,659.98,658.98,0.502]
[1746855251434,1.93745811,659.9,658.98,0.502]
[1746855252035,0.24971075,659.89,658.98,0.502]
[1746855252231,0.51374116,659.89,658.98,0.502]
[1746855252429,0.24971075,659.88,658.98,0.502]
[1746855252630,0.24971075,659.87,658.98,0.502]
[1746855252934,0.24971075,659.86,658.98,0.502]
[1746855253236,0.24971075,659.85,658.98,0.502]
[1746855253534,0.24971075,659.84,658.98,0.502]
[1746855253935,0.24971075,659.83,658.98,0.502]
[1746855254234,0.24971075,659.82,658.98,0.502]
[1746855254635,0.24971075,659.81,658.98,0.502]
[1746855254930,0.24971075,659.8,658.98,0.502]
[1746855255129,0.51374316,659.8,658.98,0.502]
[1746855255335,0.24971075,659.79,658.98,0.502]
[1746855255635,0.24971075,659.78,658.98,0.502]
[1746855255934,0.24971075,659.77,658.98,0.502]
[1746855256234,0.24971075,659.76,658.98,0.502]
[1746855256631,0.24971075,659.75,658.98,0.502]
[1746855256935,0.24971075,659.74,658.98,0.502]
[1746855257237,0.24971075,659.73,658.98,0.502]
[1746855257734,0.24971075,659.72,658.98,0.502]
[1746855258133,0.24971075,659.71,658.98,0.502]
[1746855258436,0.24971075,659.7,658.98,0.502]
[1746855258838,0.24971075,659.69,658.98,0.502]
[1746855259533,0.24971075,659.71,658.98,0.502]
[1746855260032,0.24971075,659.7,658.98,0.502]
[1746855260237,0.24971075,659.69,658.98,0.502]
[1746855260437,0.51371712,659.69,658.98,0.502]
[1746855260732,0.24971075,659.68,658.98,0.502]
[1746855263638,0.24971075,659.67,658.98,0.502]
[1746855263934,0.24971075,659.68,658.98,0.502]
[1746855264338,0.24971075,659.67,658.98,0.502]
[1746855264639,0.24971075,659.66,658.98,0.502]
[1746855264933,0.24971075,659.65,658.98,0.502]
[1746855265440,0.24971075,659.64,658.98,0.502]
[1746855266041,0.24971075,659.63,658.98,0.502]
[1746855266335,0.24971075,659.62,658.98,0.502]
[1746855266837,0.24971075,659.61,658.98,0.502]
[1746855267239,0.24971075,659.62,658.98,0.502]
[1746855269042,0.24971075,659.62,658.99,0.371]
[1746855269251,0.26409854,659.61,658.99,0.371]
[1746855269640,0.24971075,659.6,658.99,0.371]
[1746855272145,0.24971075,659.87,658.99,0.371]
[1746855272345,0.26397333,659.59,658.99,0.371]
[1746855272542,0.24971075,659.87,658.99,0.371]
[1746855272746,0.24971075,659.58,658.99,0.371]
[1746855272947,0.24971075,659.87,658.99,0.371]
[1746855273249,0.26397333,659.57,658.99,0.371]
[1746855273441,0.24971075,659.56,658.99,0.371]
[1746855273942,0.24971075,659.87,658.99,0.371]
[1746855274750,0.51368408,659.86,658.99,0.371]
[1746855274949,0.24971075,659.85,658.99,0.371]
[1746855275548,0.24971075,659.87,658.99,0.371]
[1746855275750,0.24971075,659.86,658.99,0.371]
[1746855276049,0.24971075,659.85,658.99,0.371]
[1746855276251,0.26397333,659.85,658.99,0.371]
[1746855276550,0.24971075,659.84,658.99,0.371]
[1746855280254,0.24971075,659.83,658.99,0.371]
[1746855280554,0.24971075,659.82,658.99,0.371]
[1746855280853,0.24971075,659.81,658.99,0.371]
[1746855281654,0.24971075,659.8,658.99,0.371]
[1746855281949,0.24971075,659.79,658.99,0.371]
[1746855282253,0.51369409,659.79,658.99,0.371]
[1746855282452,0.24971075,659.78,658.99,0.371]
[1746855284454,0.24971075,660.1,658.99,0.371]
[1746855284853,0.24971075,660.09,658.99,0.371]
[1746855285155,0.24971075,660.08,658.99,0.371]
[1746855285352,0.51364504,660.08,658.99,0.371]
[1746855285551,0.26393429,660.08,658.99,0.371]
[1746855285853,0.24969211,660.07,658.99,0.371]
[1746855286256,0.24969211,660.06,658.99,0.371]
[1746855286557,0.24969211,660.05,658.99,0.371]
[1746855287158,0.24969211,660.04,658.99,0.371]
[1746855287354,0.24969211,660.03,658.99,0.371]
[1746855287856,0.24969211,660.02,658.99,0.371]
[1746855288159,0.24969211,660.01,658.99,0.371]
[1746855288558,0.24969211,660.0,658.99,0.371]
[1746855288758,0.24969211,659.99,658.99,0.371]
[1746855289158,0.24969211,659.98,658.99,0.371]
[1746855289458,0.24969211,659.97,658.99,0.371]
[1746855289759,0.24969211,659.96,658.99,0.371]
[1746855290160,0.24969211,659.95,658.99,0.371]
[1746855290455,0.24969211,660.01,658.99,0.371]
[1746855290755,0.24969211,660.0,658.99,0.371]
[1746855291354,0.24969211,659.99,658.99,0.371]
[1746855291558,0.26391427,660.02,658.99,0.371]
[1746855291559,0.24969211,659.98,658.99,0.371]
[1746855291854,0.24969211,659.97,658.99,0.371]
[1746855292059,0.24969211,659.97,658.98,0.502]
[1746855292660,0.24969211,660.01,658.98,0.502]
[1746855292856,0.24969211,660.01,658.99,0.30349474]
[1746855293260,0.2639503,660.0,658.99,0.30349474]
[1746855293560,0.2639503,660.0,659.0,0.502]
[1746855293865,0.24969211,659.99,659.0,0.502]
[1746855296563,0.24969211,660.38,659.0,0.502]
[1746855296767,0.30286051,660.37,659.0,0.502]
[1746855296967,0.55255262,660.37,659.0,0.502]
[1746855297164,0.26389026,660.36,659.0,0.502]
[1746855297360,0.81644747,660.36,659.0,0.502]
[1746855297762,0.24969211,660.35,659.0,0.502]
[1746855298468,0.24969211,660.34,659.0,0.502]
[1746855298869,0.24969211,660.33,659.0,0.502]
[1746855299271,0.26389226,660.33,659.0,0.502]
[1746855299772,0.24974744,660.32,659.0,0.502]
[1746855300067,0.24974744,660.31,659.0,0.502]
[1746855300573,0.24974744,660.3,659.0,0.502]
[1746855300768,0.24974744,660.29,659.0,0.502]
[1746855301174,0.24974744,660.28,659.0,0.502]
[1746855301575,0.24974744,660.27,659.0,0.502]
[1746855302274,0.5136397,660.26,659.0,0.502]
[1746855302774,0.24974744,660.25,659.01,0.495]
[1746855303174,0.24974744,660.24,659.01,0.495]
[1746855303475,0.24974744,660.23,659.01,0.495]
[1746855303771,0.24974744,660.22,659.01,0.495]
[1746855304178,0.24974744,660.21,659.01,0.495]
[1746855304585,0.24974744,660.2,659.01,0.495]
[1746855305083,0.5136407,660.19,659.01,0.495]
[1746855305279,0.24974744,660.18,659.01,0.495]
[1746855305481,1.93745811,659.96,659.01,0.495]
[1746855306186,0.24974744,659.95,659.01,0.495]
[1746855306584,0.24974744,659.94,659.01,0.495]
[1746855306983,0.24974744,659.93,659.01,0.495]
[1746855307383,0.24974744,659.92,659.01,0.495]
[1746855307783,0.24974744,659.91,659.01,0.495]
[1746855307984,1.93745811,659.89,659.01,0.495]
[1746855308385,0.24974744,659.88,659.01,0.495]
[1746855309386,0.26392228,659.87,659.01,0.495]
[1746855309786,0.24974744,659.86,659.01,0.495]
[1746855311287,0.26390427,659.85,659.01,0.495]
[1746855311691,0.24974744,659.84,659.01,0.495]
[1746855317294,0.24974744,660.35,659.01,0.495]
[1746855317690,0.24974744,660.34,659.01,0.495]
[1746855317895,0.24974744,660.33,659.01,0.495]
[1746855318190,0.51362069,660.33,659.01,0.495]
[1746855318394,0.24974744,660.32,659.01,0.495]
[1746855318794,0.24974744,660.31,659.01,0.495]
[1746855319094,0.24974744,660.3,659.01,0.495]
[1746855319596,0.26387325,660.33,659.01,0.495]
[1746855319994,1.93745811,660.13,659.01,0.495]
[1746855320294,0.249762,660.12,659.01,0.495]
[1746855320597,0.249762,660.11,659.01,0.495]
[1746855320895,0.249762,660.1,659.02,0.30348092]
[1746855321196,0.249762,660.09,659.02,0.30348092]
[1746855321598,1.93745811,660.02,659.02,0.30348092]
[1746855322195,0.249762,660.01,659.02,0.30348092]
[1746855322397,0.249762,660.0,659.02,0.30348092]
[1746855322697,0.249762,659.99,659.02,0.30348092]
[1746855323297,0.26392628,659.98,659.02,0.30348092]
[1746855323496,0.51368828,659.98,659.02,0.30348092]
[1746855323791,0.249762,659.97,659.02,0.30348092]
[1746855324499,0.249762,659.96,659.02,0.30348092]
[1746855324902,0.249762,659.95,659.02,0.30348092]
[1746855325197,0.249762,659.94,659.02,0.30348092]
[1746855325502,0.249762,659.93,659.02,0.30348092]
[1746855326002,0.249762,659.92,659.02,0.30348092]
[1746855326301,0.249762,659.91,659.02,0.30348092]
[1746855326697,0.249762,659.9,659.02,0.30348092]
[1746855327102,0.249762,660.01,659.02,0.30348092]
[1746855327299,0.26391627,659.89,659.02,0.30348092]
[1746855327502,1.93745811,660.02,659.02,0.30348092]
[1746855327503,0.249762,660.0,659.02,0.30348092]
[1746855327803,0.249762,659.99,659.02,0.30348092]
[1746855328104,0.249762,659.98,659.02,0.30348092]
[1746855328403,0.3028651,660.36,659.02,0.30348092]
[1746855328404,0.249762,659.97,659.02,0.30348092]
[1746855328902,0.51367427,659.96,659.02,0.30348092]
[1746855329402,0.249762,659.95,659.03,0.487]
[1746855330008,0.249762,660.22,659.03,0.487]
[1746855330307,0.26391027,659.94,659.03,0.487]
[1746855330509,1.93745811,660.19,659.03,0.487]
[1746855330705,0.249762,660.18,659.03,0.487]
[1746855331110,1.93745811,660.19,659.03,0.487]
[1746855331111,0.249762,660.17,659.03,0.487]
[1746855331404,0.51367627,660.17,659.03,0.487]
[1746855331604,0.249762,660.16,659.03,0.487]
[1746855331908,0.249762,660.15,659.03,0.487]
[1746855332309,0.249762,660.14,659.03,0.487]
[1746855332804,0.249762,660.13,659.03,0.487]
[1746855333005,0.249762,660.12,659.03,0.487]
[1746855333303,0.26391327,660.12,659.03,0.487]
[1746855333805,1.93745811,660.05,659.03,0.487]
[1746855334311,0.24980321,660.04,659.03,0.487]
[1746855334911,0.24980321,660.03,659.03,0.487]
[1746855335212,0.24980321,660.02,659.03,0.487]
[1746855335607,0.24980321,660.01,659.03,0.487]
[1746855335812,0.24980321,660.01,659.04,0.435]
[1746855336012,0.24980321,660.0,659.04,0.435]
[1746855336311,0.51373149,660.0,659.04,0.435]
[1746855336507,0.24980321,659.99,659.04,0.435]
[1746855336706,0.24980321,659.98,659.04,0.435]
[1746855337210,0.24980321,659.97,659.04,0.435]
[1746855337512,0.24980321,659.96,659.04,0.435]
[1746855337915,0.24980321,659.95,659.04,0.435]
[1746855338211,0.24980321,659.94,659.04,0.435]
[1746855338715,0.24980321,659.93,659.04,0.435]
[1746855339017,0.24980321,659.92,659.04,0.435]
[1746855339208,0.51373049,659.92,659.04,0.435]
[1746855339410,0.24980321,659.91,659.04,0.435]
[1746855339814,0.24980321,659.9,659.04,0.435]
[1746855340215,0.24980321,659.89,659.04,0.435]
[1746855340419,1.93745811,659.83,659.04,0.435]
[1746855340917,0.24980321,659.82,659.04,0.435]
[1746855341312,1.93745811,659.83,659.04,0.435]
[1746855341715,0.24973758,659.82,659.04,0.435]
[1746855342311,0.26398334,659.81,659.04,0.435]
[1746855342817,0.24973758,659.8,659.04,0.435]
[1746855347321,0.26396632,659.79,659.04,0.435]
[1746855347723,0.24959377,659.78,659.04,0.435]
[1746855348025,0.24959377,659.77,659.04,0.435]
[1746855348424,0.24959377,659.76,659.04,0.435]
[1746855348823,0.24959377,659.75,659.04,0.435]
[1746855349320,0.24959377,659.74,659.04,0.435]
[1746855349623,0.24959377,659.73,659.04,0.435]
[1746855349922,1.93745811,660.1,659.04,0.435]
[1746855350128,1.93745811,660.14,659.04,0.435]
[1746855350327,0.26396632,659.72,659.04,0.435]
[1746855350528,0.30297062,660.13,659.04,0.435]
[1746855350529,0.24959367,659.71,659.04,0.435]
[1746855351027,0.24959367,659.7,659.04,0.435]
[1746855351324,0.24959367,659.69,659.04,0.435]
[1746855351623,0.24959367,659.68,659.04,0.435]
[1746855351927,0.24959367,659.67,659.04,0.435]
[1746855352227,0.24959367,659.66,659.04,0.435]
[1746855352628,0.24959367,659.65,659.04,0.435]
[1746855353023,0.24959367,659.69,659.04,0.435]
[1746855353324,0.26396332,659.7,659.04,0.435]
[1746855353629,0.24955704,659.69,659.04,0.435]
[1746855354029,0.24955704,659.68,659.04,0.435]
[1746855354329,0.24955704,659.67,659.04,0.435]
[1746855354625,0.24955704,659.66,659.04,0.435]
[1746855355125,0.24955704,659.69,659.04,0.435]
[1746855355429,0.24955704,659.68,659.04,0.435]
[1746855355824,0.24955704,659.69,659.04,0.435]
[1746855357932,0.24955704,659.69,659.03,0.487]
[1746855359329,0.2639453,659.68,659.03,0.487]
[1746855359828,0.24955704,659.67,659.03,0.487]
[1746855360033,0.24955704,659.67,659.04,0.513]
[1746855362332,0.26390927,659.66,659.04,0.513]
[1746855362635,0.26390927,659.66,659.05,0.30346711]
[1746855362936,0.24955704,659.65,659.05,0.30346711]
[1746855365144,0.26389226,659.64,659.05,0.30346711]
[1746855365845,0.24955704,659.63,659.05,0.30346711]
[1746855366446,0.26389226,659.64,659.05,0.30346711]
[1746855368147,0.30297062,660.13,659.05,0.30346711]
[1746855368346,0.26386625,659.63,659.05,0.30346711]
[1746855368545,0.24968843,660.12,659.05,0.30346711]
[1746855369349,0.26386625,660.11,659.05,0.30346711]
[1746855369943,0.24969269,660.1,659.05,0.30346711]
[1746855371346,0.24969269,660.12,659.05,0.30346711]
[1746855372252,0.26386625,660.11,659.05,0.30346711]
[1746855372653,0.24969269,660.1,659.05,0.30346711]
[1746855374253,0.26388425,660.09,659.05,0.30346711]
[1746855374753,0.24969269,660.08,659.05,0.30346711]
[1746855375554,0.24969269,660.07,659.05,0.30346711]
[1746855376055,0.24969269,660.06,659.05,0.30346711]
[1746855376455,0.24969269,660.05,659.05,0.30346711]
[1746855376750,0.24969269,660.04,659.05,0.30346711]
[1746855377252,0.24969269,660.03,659.05,0.30346711]
[1746855377452,0.24969269,660.02,659.05,0.30346711]
[1746855377755,0.24969269,660.01,659.05,0.30346711]
[1746855378253,0.24969269,660.0,659.05,0.30346711]
[1746855378555,0.24969269,660.02,659.05,0.30346711]
[1746855378851,0.24969269,660.01,659.05,0.30346711]
[1746855379360,0.24969269,660.0,659.05,0.30346711]
[1746855379852,0.24969269,660.02,659.05,0.30346711]
[1746855380356,0.26389426,659.99,659.06,0.374]
[1746855380754,0.24969269,659.98,659.06,0.862]
[1746855382762,0.26389426,659.99,659.06,0.862]
[1746855383060,0.30297062,660.13,659.06,0.862]
[1746855383260,0.24971795,659.98,659.06,0.862]
[1746855383654,0.24971795,660.12,659.06,0.862]
[1746855384261,0.26380024,660.11,659.06,0.862]
[1746855384461,0.24971795,660.1,659.06,0.862]
[1746855385161,0.24971795,660.1,659.07,0.30337716]
[1746855385556,0.24971795,660.1,659.06,0.862]
[1746855386859,0.24971795,660.1,659.07,0.30337172]
[1746855387464,0.24971795,660.1,659.06,0.862]
[1746855387965,0.26380024,660.11,659.06,0.862]
[1746855388964,0.30297062,660.13,659.06,0.862]
[1746855390362,0.26381124,660.12,659.06,0.862]
[1746855390566,0.51345585,660.12,659.06,0.862]
[1746855391068,0.24964461,660.11,659.06,0.862]
[1746855391566,0.24964461,660.12,659.06,0.862]
[1746855395266,0.30297062,660.13,659.06,0.862]
[1746855395667,0.24961899,660.12,659.06,0.862]
[1746855397367,0.26387025,660.11,659.06,0.862]
[1746855397766,0.24961899,660.1,659.06,0.862]
[1746855398164,0.24961899,660.12,659.06,0.862]
[1746855399468,0.26387025,660.11,659.06,0.862]
[1746855399867,0.24961899,660.1,659.06,0.862]
[1746855401769,0.24961899,660.12,659.06,0.862]
[1746855402369,0.26389226,660.11,659.06,0.862]
[1746855402570,0.51351125,660.11,659.06,0.862]
[1746855402771,0.24961899,660.1,659.06,0.862]
[1746855404169,0.24961899,660.09,659.06,0.862]
[1746855404372,0.24961899,660.08,659.06,0.862]
[1746855404671,0.26389226,660.11,659.06,0.862]
[1746855404974,0.24953561,660.1,659.06,0.862]
[1746855405470,0.24953561,660.09,659.06,0.862]
[1746855405671,0.24953561,660.08,659.06,0.862]
[1746855405971,0.24953561,660.07,659.06,0.862]
[1746855406371,0.24953561,660.06,659.06,0.862]
[1746855407273,0.24953561,660.05,659.06,0.862]
[1746855407773,0.24953561,660.04,659.06,0.862]
[1746855407974,0.24953561,660.03,659.06,0.862]
[1746855408274,0.51343687,660.03,659.06,0.862]
[1746855408980,0.24953561,660.02,659.06,0.862]
[1746855409277,0.24953561,660.01,659.06,0.862]
[1746855409578,0.24953561,660.0,659.06,0.862]
[1746855409873,0.24953561,659.99,659.06,0.862]
[1746855410277,0.24953561,659.98,659.06,0.862]
[1746855410777,0.24953561,659.97,659.06,0.862]
[1746855411178,0.24953561,659.96,659.06,0.862]
[1746855411377,0.26390026,659.96,659.06,0.862]
[1746855411780,0.24948911,659.95,659.06,0.862]
[1746855412175,0.24948911,659.94,659.06,0.862]
[1746855412780,0.24948911,659.93,659.06,0.862]
[1746855413184,0.24948911,659.92,659.06,0.862]
[1746855413480,0.24948911,659.91,659.06,0.862]
[1746855413780,0.26390026,659.92,659.06,0.862]
[1746855414081,0.24959215,659.91,659.06,0.862]
[1746855417086,0.26390026,659.92,659.06,0.862]
[1746855417284,0.2495999,659.91,659.06,0.862]
[1746855419488,0.26388125,659.9,659.06,0.862]
[1746855419788,0.2495999,659.89,659.06,0.862]
[1746855420387,0.26388125,659.9,659.06,0.862]
[1746855420692,0.24956308,659.89,659.06,0.862]
[1746855421990,0.30297062,660.13,659.06,0.862]
[1746855422293,0.24954166,660.12,659.06,0.862]
[1746855422491,0.26386025,659.88,659.06,0.862]
[1746855422790,0.24954166,659.87,659.06,0.862]
[1746855422991,0.24954166,660.12,659.06,0.862]
[1746855423291,0.26389026,659.86,659.06,0.862]
[1746855423587,0.24954166,660.11,659.06,0.862]
[1746855423790,0.51343392,659.85,659.06,0.862]
[1746855423991,0.24954166,659.85,659.06,0.862]
[1746855424190,0.24954166,659.84,659.06,0.862]
[1746855424387,0.51343192,659.84,659.06,0.862]
[1746855424590,0.26389026,659.84,659.06,0.862]
[1746855424792,0.24954166,659.83,659.06,0.862]
[1746855428393,0.30297062,660.13,659.06,0.862]
[1746855428394,0.26387625,659.82,659.06,0.862]
[1746855428598,0.24954166,659.81,659.06,0.862]
[1746855431499,0.24954166,660.72,659.06,0.862]
[1746855431899,0.24954166,660.71,659.06,0.862]
[1746855432295,0.24954166,660.7,659.06,0.862]
[1746855432500,0.24954166,660.69,659.06,0.862]